[Event "Late-Titled-Tuesday-Blitz-October-03-2023"]
[Site "Chess.com"]
[Date "2023.10.03"]
[Round "8"]
[White "Saraisitave"]
[Black "NovikovaGalina"]
[Result "1-0"]
[WhiteElo "2292"]
[BlackElo "2413"]
[TimeControl "180+1"]
[EndTime "15:24:18 PDT"]
[Termination "Saraisitave won by checkmate"]

1. e4 {[%clk 0:03:00.9]} 1... e5 {[%clk 0:03:00]} 2. d4 {[%clk 0:03:00.1]} 2...
exd4 {[%clk 0:02:59]} 3. Qxd4 {[%clk 0:03:00.8]} 3... Nc6 {[%clk 0:02:59.5]} 4.
Qe3 {[%clk 0:03:01.4]} 4... Nf6 {[%clk 0:02:56.3]} 5. Nc3 {[%clk 0:03:00.6]}
5... Bb4 {[%clk 0:02:55.6]} 6. Bd2 {[%clk 0:03:00.9]} 6... d6 {[%clk 0:02:55.6]}
7. O-O-O {[%clk 0:03:00.4]} 7... Be6 {[%clk 0:02:55.7]} 8. f4 {[%clk 0:03:00.3]}
8... a6 {[%clk 0:02:52.8]} 9. f5 {[%clk 0:02:59.6]} 9... Bd7 {[%clk 0:02:49.5]}
10. g4 {[%clk 0:02:46.9]} 10... Qe7 {[%clk 0:02:49.5]} 11. g5 {[%clk 0:02:45.5]}
11... Bxc3 {[%clk 0:02:49.2]} 12. Bxc3 {[%clk 0:02:37.6]} 12... Nxe4 {[%clk
0:02:49.4]} 13. Bxg7 {[%clk 0:02:28.8]} 13... Rg8 {[%clk 0:02:48.5]} 14. f6
{[%clk 0:02:10.3]} 14... Qe6 {[%clk 0:02:22]} 15. Bh3 {[%clk 0:01:58.7]} 15...
Qe5 {[%clk 0:02:15.2]} 16. Nf3 {[%clk 0:01:49.2]} 16... Qa5 {[%clk 0:01:55.6]}
17. Qxe4+ {[%clk 0:01:46.5]} 17... Kd8 {[%clk 0:01:55.5]} 18. Bxd7 {[%clk
0:01:38]} 18... Kxd7 {[%clk 0:01:56.4]} 19. Qg4+ {[%clk 0:01:37.5]} 19... Kd8
{[%clk 0:01:55.6]} 20. a3 {[%clk 0:01:37.3]} 20... b5 {[%clk 0:01:48.6]} 21. c3
{[%clk 0:01:17.1]} 21... Qb6 {[%clk 0:01:46.7]} 22. Rhe1 {[%clk 0:01:15.1]}
22... a5 {[%clk 0:01:42]} 23. Ne5 {[%clk 0:00:56.3]} 23... Nxe5 {[%clk 0:01:39]}
24. Rxe5 {[%clk 0:00:56.2]} 24... b4 {[%clk 0:01:38.4]} 25. Re7 {[%clk
0:00:56.4]} 25... Qc6 {[%clk 0:01:36.7]} 26. Qe4 {[%clk 0:00:46.9]} 26... Qxe4
{[%clk 0:01:32.2]} 27. Rxe4 {[%clk 0:00:46.8]} 27... bxa3 {[%clk 0:01:33.1]} 28.
bxa3 {[%clk 0:00:46]} 28... Kd7 {[%clk 0:01:31]} 29. Re7+ {[%clk 0:00:45.8]}
29... Kc6 {[%clk 0:01:31.1]} 30. Rxf7 {[%clk 0:00:46]} 30... Rab8 {[%clk
0:01:31.4]} 31. Kc2 {[%clk 0:00:45]} 31... a4 {[%clk 0:01:31]} 32. Rb1 {[%clk
0:00:43.9]} 32... Rbe8 {[%clk 0:01:30]} 33. Re7 {[%clk 0:00:34.6]} 33... Rd8
{[%clk 0:01:28.7]} 34. Rb4 {[%clk 0:00:31.2]} 34... d5 {[%clk 0:01:25.9]} 35.
Rxa4 {[%clk 0:00:30.8]} 35... Kd6 {[%clk 0:01:26.8]} 36. Ra7 {[%clk 0:00:30]}
36... Rc8 {[%clk 0:01:26.7]} 37. h4 {[%clk 0:00:28]} 37... c5 {[%clk 0:01:20.3]}
38. Ra6+ {[%clk 0:00:27.3]} 38... Rc6 {[%clk 0:01:18.8]} 39. Re6+ {[%clk
0:00:23.4]} 39... Kxe6 {[%clk 0:01:18.3]} 40. Rxc6+ {[%clk 0:00:24]} 40... Kf7
{[%clk 0:01:16.9]} 41. Rxc5 {[%clk 0:00:23.2]} 41... Ra8 {[%clk 0:01:17.8]} 42.
Rxd5 {[%clk 0:00:22.1]} 42... Rxa3 {[%clk 0:01:17.1]} 43. h5 {[%clk 0:00:22.1]}
43... Ra2+ {[%clk 0:01:15.7]} 44. Kd3 {[%clk 0:00:21.5]} 44... Rg2 {[%clk
0:01:16.6]} 45. Rd7+ {[%clk 0:00:20.1]} 45... Ke6 {[%clk 0:01:16.9]} 46. Re7+
{[%clk 0:00:20]} 46... Kf5 {[%clk 0:01:17.3]} 47. Bh6 {[%clk 0:00:19.6]} 47...
Rg3+ {[%clk 0:01:15.9]} 48. Re3 {[%clk 0:00:17.8]} 48... Rg1 {[%clk 0:01:14.6]}
49. f7 {[%clk 0:00:17.8]} 49... Kg4 {[%clk 0:01:14.4]} 50. f8=Q {[%clk 0:00:17]}
50... Rd1+ {[%clk 0:01:15.3]} 51. Ke2 {[%clk 0:00:16.6]} 51... Rd7 {[%clk
0:01:13.7]} 52. Qc8 {[%clk 0:00:14.4]} 52... Kh4 {[%clk 0:01:14.6]} 53. Re4+
{[%clk 0:00:12.8]} 53... Kxh5 {[%clk 0:01:14.3]} 54. Qxd7 {[%clk 0:00:08.7]}
54... Kg6 {[%clk 0:01:13.7]} 55. Qe8+ {[%clk 0:00:08.7]} 55... Kf5 {[%clk
0:01:12.5]} 56. Qe6# {[%clk 0:00:09.3]} 1-0

[Event "Late-Titled-Tuesday-Blitz-October-03-2023"]
[Site "Chess.com"]
[Date "2023.10.03"]
[Round "8"]
[White "remi04"]
[Black "SaqoChess_Twitch"]
[Result "0-1"]
[WhiteElo "2843"]
[BlackElo "2665"]
[TimeControl "180+1"]
[EndTime "15:24:19 PDT"]
[Termination "SaqoChess_Twitch won by resignation"]

1. e4 {[%clk 0:02:50]} 1... c5 {[%clk 0:02:59.9]} 2. Nf3 {[%clk 0:02:50.3]} 2...
d6 {[%clk 0:03:00.2]} 3. d4 {[%clk 0:02:50.6]} 3... cxd4 {[%clk 0:03:01.1]} 4.
Nxd4 {[%clk 0:02:51.3]} 4... Nf6 {[%clk 0:03:01.8]} 5. Nc3 {[%clk 0:02:51.8]}
5... g6 {[%clk 0:03:02.4]} 6. Be3 {[%clk 0:02:51.5]} 6... Bg7 {[%clk 0:03:02.9]}
7. f3 {[%clk 0:02:52.2]} 7... O-O {[%clk 0:03:03.5]} 8. Qd2 {[%clk 0:02:52.9]}
8... Nc6 {[%clk 0:03:04]} 9. g4 {[%clk 0:02:53.4]} 9... Nxd4 {[%clk 0:03:03.5]}
10. Bxd4 {[%clk 0:02:53.6]} 10... Be6 {[%clk 0:03:04.2]} 11. h4 {[%clk
0:02:53.3]} 11... Qa5 {[%clk 0:03:04.1]} 12. h5 {[%clk 0:02:50]} 12... Rab8
{[%clk 0:03:00.1]} 13. a3 {[%clk 0:02:32.8]} 13... Rfc8 {[%clk 0:02:55.3]} 14.
hxg6 {[%clk 0:02:28.6]} 14... hxg6 {[%clk 0:02:54.7]} 15. Bh3 {[%clk 0:01:59]}
15... b5 {[%clk 0:02:36.7]} 16. g5 {[%clk 0:01:55.4]} 16... Nh5 {[%clk
0:02:26.6]} 17. Bxg7 {[%clk 0:01:48.1]} 17... Kxg7 {[%clk 0:02:02.2]} 18. Qd4+
{[%clk 0:00:52.4]} 18... Kg8 {[%clk 0:02:01.7]} 19. Bxe6 {[%clk 0:00:50.8]}
19... fxe6 {[%clk 0:02:02.6]} 20. Qb4 {[%clk 0:00:18.3]} 20... Qb6 {[%clk
0:01:59.8]} 21. O-O-O {[%clk 0:00:16.6]} 21... Rc4 {[%clk 0:01:43.6]} 22. Qb3
{[%clk 0:00:16.8]} 22... Qe3+ {[%clk 0:01:36.7]} 23. Kb1 {[%clk 0:00:16.9]}
23... a6 {[%clk 0:01:30.5]} 24. a4 {[%clk 0:00:12.1]} 24... Qc5 {[%clk
0:01:28.1]} 25. axb5 {[%clk 0:00:11.4]} 25... axb5 {[%clk 0:01:29]} 26. Ne2
{[%clk 0:00:07.4]} 26... Rc8 {[%clk 0:01:24.9]} 27. c3 {[%clk 0:00:06.6]} 27...
Ra8 {[%clk 0:01:19.8]} 28. Nd4 {[%clk 0:00:06.6]} 28... Kf7 {[%clk 0:01:14]} 29.
Qxb5 {[%clk 0:00:06.1]} 29... Rxd4 {[%clk 0:01:14.5]} 30. Qb7 {[%clk 0:00:03.3]}
30... Rxd1+ {[%clk 0:01:14.3]} 31. Rxd1 {[%clk 0:00:04.2]} 31... Qa7 {[%clk
0:01:12.2]} 32. Qb5 {[%clk 0:00:03.7]} 32... Qa1+ {[%clk 0:01:10.4]} 33. Kc2
{[%clk 0:00:04.3]} 33... Qa4+ {[%clk 0:01:11]} 34. Qxa4 {[%clk 0:00:04.9]} 34...
Rxa4 {[%clk 0:01:11.9]} 35. b4 {[%clk 0:00:05]} 35... Ra8 {[%clk 0:01:08.9]} 36.
Kb3 {[%clk 0:00:05.4]} 36... Ke8 {[%clk 0:01:09.2]} 37. b5 {[%clk 0:00:05.8]}
37... Kd7 {[%clk 0:01:09.6]} 38. Kb4 {[%clk 0:00:06.4]} 38... Nf4 {[%clk
0:01:08.2]} 39. c4 {[%clk 0:00:06.5]} 39... e5 {[%clk 0:01:08.7]} 40. c5 {[%clk
0:00:06.6]} 40... Ne6 {[%clk 0:01:08.7]} 41. c6+ {[%clk 0:00:04.7]} 41... Kc7
{[%clk 0:01:09.4]} 42. Rh1 {[%clk 0:00:04.7]} 42... Nxg5 {[%clk 0:01:07.5]} 43.
Rh6 {[%clk 0:00:04.3]} 43... Nxf3 {[%clk 0:01:07.2]} 44. Rxg6 {[%clk 0:00:04.4]}
44... Nd4 {[%clk 0:01:01]} 45. Rg7 {[%clk 0:00:04]} 45... Re8 {[%clk 0:01:00.1]}
46. Ka5 {[%clk 0:00:04.4]} 46... Ne6 {[%clk 0:00:59.1]} 47. Rh7 {[%clk
0:00:04.2]} 47... Nc5 {[%clk 0:00:59.3]} 48. Rg7 {[%clk 0:00:03.9]} 48... Nxe4
{[%clk 0:00:59.4]} 49. Rh7 {[%clk 0:00:02.9]} 49... Nc5 {[%clk 0:00:59.5]} 50.
Kb4 {[%clk 0:00:03.3]} 50... Kb6 {[%clk 0:00:58.8]} 51. Kc4 {[%clk 0:00:03.8]}
51... e6 {[%clk 0:00:58.2]} 52. Rc7 {[%clk 0:00:03.1]} 0-1

[Event "Late-Titled-Tuesday-Blitz-October-03-2023"]
[Site "Chess.com"]
[Date "2023.10.03"]
[Round "8"]
[White "aistrel"]
[Black "KNVB"]
[Result "1-0"]
[WhiteElo "2555"]
[BlackElo "2686"]
[TimeControl "180+1"]
[EndTime "15:24:20 PDT"]
[Termination "aistrel won by checkmate"]

1. d4 {[%clk 0:03:00.9]} 1... Nf6 {[%clk 0:02:59.3]} 2. Nc3 {[%clk 0:03:00.2]}
2... d5 {[%clk 0:02:46.7]} 3. Bf4 {[%clk 0:03:00.3]} 3... a6 {[%clk 0:02:18.5]}
4. e3 {[%clk 0:02:59.8]} 4... e6 {[%clk 0:02:00.9]} 5. g4 {[%clk 0:02:58.8]}
5... c5 {[%clk 0:01:53.1]} 6. g5 {[%clk 0:02:58.7]} 6... Nfd7 {[%clk 0:01:52.6]}
7. h4 {[%clk 0:02:59.1]} 7... Nc6 {[%clk 0:01:46.7]} 8. a3 {[%clk 0:02:59.7]}
8... b5 {[%clk 0:01:39.4]} 9. h5 {[%clk 0:02:58.9]} 9... Bb7 {[%clk 0:01:30.9]}
10. Nf3 {[%clk 0:02:56.7]} 10... Nb6 {[%clk 0:01:24.8]} 11. Bd3 {[%clk
0:02:37.3]} 11... c4 {[%clk 0:01:19]} 12. Be2 {[%clk 0:02:37.6]} 12... Bd6
{[%clk 0:01:19.6]} 13. b4 {[%clk 0:02:28.4]} 13... cxb3 {[%clk 0:00:43.8]} 14.
cxb3 {[%clk 0:02:25.3]} 14... b4 {[%clk 0:00:41]} 15. axb4 {[%clk 0:02:03.1]}
15... Bxb4 {[%clk 0:00:32.6]} 16. Rc1 {[%clk 0:02:02.7]} 16... Rc8 {[%clk
0:00:32]} 17. Kf1 {[%clk 0:01:51.9]} 17... Ba3 {[%clk 0:00:23.4]} 18. Rb1 {[%clk
0:01:43.4]} 18... Bd6 {[%clk 0:00:15.7]} 19. Qd2 {[%clk 0:01:23.3]} 19... Nb4
{[%clk 0:00:13.5]} 20. Kg2 {[%clk 0:01:15.5]} 20... Qc7 {[%clk 0:00:09.2]} 21.
Rhc1 {[%clk 0:00:57.4]} 21... Qb8 {[%clk 0:00:09.2]} 22. Na4 {[%clk 0:00:51.8]}
22... Rxc1 {[%clk 0:00:06.5]} 23. Qxc1 {[%clk 0:00:52]} 23... Bxf4 {[%clk
0:00:02.5]} 24. exf4 {[%clk 0:00:52.4]} 24... Nxa4 {[%clk 0:00:02.8]} 25. bxa4
{[%clk 0:00:53]} 25... a5 {[%clk 0:00:03.6]} 26. Bb5+ {[%clk 0:00:52.9]} 26...
Ke7 {[%clk 0:00:04.2]} 27. Qc5+ {[%clk 0:00:40.5]} 27... Qd6 {[%clk 0:00:04.5]}
28. Qa7 {[%clk 0:00:41.1]} 28... Rb8 {[%clk 0:00:02.7]} 29. Qxa5 {[%clk
0:00:38.7]} 29... Nc6 {[%clk 0:00:02.3]} 30. Bxc6 {[%clk 0:00:32.4]} 30... Qxc6
{[%clk 0:00:01.8]} 31. Ne5 {[%clk 0:00:31.8]} 31... Qd6 {[%clk 0:00:01.4]} 32.
Qa7 {[%clk 0:00:31.6]} 32... f6 {[%clk 0:00:01.4]} 33. Rxb7+ {[%clk 0:00:28.7]}
33... Rxb7 {[%clk 0:00:01.6]} 34. Qxb7+ {[%clk 0:00:29.6]} 34... Ke8 {[%clk
0:00:01.6]} 35. Nc6 {[%clk 0:00:21.8]} 35... Kf8 {[%clk 0:00:01.6]} 36. a5
{[%clk 0:00:20.7]} 36... Qxf4 {[%clk 0:00:01.4]} 37. Qe7+ {[%clk 0:00:20.5]}
37... Kg8 {[%clk 0:00:01.8]} 38. Qe8# {[%clk 0:00:21.4]} 1-0

[Event "Late-Titled-Tuesday-Blitz-October-03-2023"]
[Site "Chess.com"]
[Date "2023.10.03"]
[Round "8"]
[White "LeninGuerra"]
[Black "Iball95"]
[Result "0-1"]
[WhiteElo "2589"]
[BlackElo "2772"]
[TimeControl "180+1"]
[EndTime "15:24:22 PDT"]
[Termination "Iball95 won by resignation"]

1. e4 {[%clk 0:03:00.9]} 1... c5 {[%clk 0:02:59.7]} 2. Nf3 {[%clk 0:03:00.3]}
2... e6 {[%clk 0:02:59.2]} 3. b4 {[%clk 0:03:00.1]} 3... d5 {[%clk 0:02:54.8]}
4. exd5 {[%clk 0:02:58.8]} 4... exd5 {[%clk 0:02:54.3]} 5. bxc5 {[%clk
0:02:57.8]} 5... Bxc5 {[%clk 0:02:55.2]} 6. Bd3 {[%clk 0:02:56.7]} 6... Nf6
{[%clk 0:02:54.4]} 7. O-O {[%clk 0:02:57.2]} 7... O-O {[%clk 0:02:54.9]} 8. Bb2
{[%clk 0:02:57.5]} 8... Bg4 {[%clk 0:02:55.7]} 9. h3 {[%clk 0:02:56.1]} 9... Bh5
{[%clk 0:02:55.7]} 10. Be2 {[%clk 0:02:40.5]} 10... Nc6 {[%clk 0:02:52.5]} 11.
Ne1 {[%clk 0:02:32.1]} 11... Bxe2 {[%clk 0:02:48.8]} 12. Qxe2 {[%clk 0:02:33]}
12... Re8 {[%clk 0:02:49.5]} 13. Qd1 {[%clk 0:02:32.5]} 13... Ne4 {[%clk
0:02:48.5]} 14. Nd3 {[%clk 0:02:31.7]} 14... Bb6 {[%clk 0:02:47.5]} 15. Nc3
{[%clk 0:02:28.1]} 15... Qg5 {[%clk 0:02:37.3]} 16. Qg4 {[%clk 0:01:16.1]} 16...
Qxg4 {[%clk 0:02:28.2]} 17. hxg4 {[%clk 0:01:17]} 17... Rad8 {[%clk 0:02:14.4]}
18. Rad1 {[%clk 0:01:12.3]} 18... Nd4 {[%clk 0:02:11.6]} 19. Nxe4 {[%clk
0:01:05.7]} 19... Ne2+ {[%clk 0:02:04.7]} 20. Kh2 {[%clk 0:01:05.5]} 20... dxe4
{[%clk 0:02:05.6]} 21. Nc1 {[%clk 0:01:03.3]} 21... Nf4 {[%clk 0:01:36.1]} 22.
g3 {[%clk 0:00:56.7]} 22... Nd5 {[%clk 0:01:36.1]} 23. Kg2 {[%clk 0:00:52.7]}
23... Rc8 {[%clk 0:01:31.5]} 24. c3 {[%clk 0:00:52]} 24... h6 {[%clk 0:01:27.3]}
25. Ne2 {[%clk 0:00:51.5]} 25... Nf6 {[%clk 0:01:27.3]} 26. f3 {[%clk 0:00:43]}
26... exf3+ {[%clk 0:01:26.3]} 27. Kxf3 {[%clk 0:00:43.9]} 27... Rc4 {[%clk
0:01:22.7]} 28. Nf4 {[%clk 0:00:42.3]} 28... g5 {[%clk 0:01:15.7]} 29. Nh5
{[%clk 0:00:42.3]} 29... Nxg4 {[%clk 0:01:16]} 30. Rfe1 {[%clk 0:00:41]} 30...
Re6 {[%clk 0:01:05.9]} 31. d4 {[%clk 0:00:35.5]} 31... Rxe1 {[%clk 0:01:01.8]}
32. Rxe1 {[%clk 0:00:34.4]} 32... f5 {[%clk 0:01:02.7]} 33. Re7 {[%clk
0:00:25.5]} 33... Rc7 {[%clk 0:01:01.9]} 34. Re6 {[%clk 0:00:24.3]} 34... Kf7
{[%clk 0:00:59.8]} 35. d5 {[%clk 0:00:22.7]} 35... Rc4 {[%clk 0:00:49.8]} 36.
Re2 {[%clk 0:00:18.6]} 36... Bc7 {[%clk 0:00:46.3]} 37. Ng7 {[%clk 0:00:12.2]}
37... Kxg7 {[%clk 0:00:44.9]} 38. Re7+ {[%clk 0:00:07.6]} 38... Kf6 {[%clk
0:00:45.2]} 39. Rh7 {[%clk 0:00:07.8]} 39... Kg6 {[%clk 0:00:45.8]} 40. Rd7
{[%clk 0:00:07.5]} 40... Ne5+ {[%clk 0:00:45.7]} 41. Ke3 {[%clk 0:00:07.2]}
41... Nxd7 {[%clk 0:00:46.6]} 0-1

[Event "Late-Titled-Tuesday-Blitz-October-03-2023"]
[Site "Chess.com"]
[Date "2023.10.03"]
[Round "8"]
[White "ljuks68"]
[Black "hellokostya"]
[Result "0-1"]
[WhiteElo "2382"]
[BlackElo "2542"]
[TimeControl "180+1"]
[EndTime "15:24:23 PDT"]
[Termination "hellokostya won on time"]

1. e4 {[%clk 0:02:49.2]} 1... c5 {[%clk 0:02:59.8]} 2. Nf3 {[%clk 0:02:48.7]}
2... Nc6 {[%clk 0:03:00.5]} 3. d4 {[%clk 0:02:48.9]} 3... cxd4 {[%clk
0:03:00.8]} 4. Nxd4 {[%clk 0:02:49.5]} 4... Nf6 {[%clk 0:03:00.9]} 5. Nc3 {[%clk
0:02:49.8]} 5... e5 {[%clk 0:03:01.4]} 6. Ndb5 {[%clk 0:02:49.6]} 6... d6 {[%clk
0:03:01.9]} 7. Nd5 {[%clk 0:02:49.7]} 7... Nxd5 {[%clk 0:03:01.9]} 8. exd5
{[%clk 0:02:50.3]} 8... Ne7 {[%clk 0:03:02]} 9. c3 {[%clk 0:02:50.6]} 9... Nf5
{[%clk 0:02:55]} 10. a4 {[%clk 0:02:49.4]} 10... Be7 {[%clk 0:02:54.5]} 11. Bd3
{[%clk 0:02:42.8]} 11... O-O {[%clk 0:02:48.2]} 12. O-O {[%clk 0:02:40.7]} 12...
a6 {[%clk 0:02:21.7]} 13. Na3 {[%clk 0:02:39.8]} 13... Bg5 {[%clk 0:02:20.1]}
14. Nc4 {[%clk 0:02:28.8]} 14... Bxc1 {[%clk 0:02:13.2]} 15. Rxc1 {[%clk
0:02:28]} 15... b5 {[%clk 0:02:09.8]} 16. axb5 {[%clk 0:02:22.1]} 16... axb5
{[%clk 0:02:10.7]} 17. Ne3 {[%clk 0:02:22.1]} 17... Nxe3 {[%clk 0:02:06.2]} 18.
fxe3 {[%clk 0:02:22.2]} 18... Qg5 {[%clk 0:02:06.1]} 19. Qe2 {[%clk 0:02:18]}
19... Bd7 {[%clk 0:01:59.1]} 20. Ra1 {[%clk 0:01:53.5]} 20... h5 {[%clk
0:01:52.3]} 21. Kh1 {[%clk 0:01:48.4]} 21... h4 {[%clk 0:01:51.5]} 22. h3 {[%clk
0:01:48.4]} 22... Rxa1 {[%clk 0:01:46.3]} 23. Rxa1 {[%clk 0:01:47.5]} 23... Qg3
{[%clk 0:01:40.2]} 24. Qe1 {[%clk 0:01:35.4]} 24... f5 {[%clk 0:00:48.4]} 25.
Qxg3 {[%clk 0:00:36.5]} 25... hxg3 {[%clk 0:00:49.3]} 26. Ra7 {[%clk 0:00:33.9]}
26... f4 {[%clk 0:00:41]} 27. exf4 {[%clk 0:00:15.8]} 27... Bf5 {[%clk
0:00:29.7]} 28. Bf1 {[%clk 0:00:09.2]} 28... exf4 {[%clk 0:00:28.9]} 29. Bxb5
{[%clk 0:00:08.4]} 29... Be4 {[%clk 0:00:24.7]} 30. Ra1 {[%clk 0:00:04.5]} 30...
g5 {[%clk 0:00:21.4]} 31. c4 {[%clk 0:00:03.2]} 31... Kg7 {[%clk 0:00:20.5]} 32.
Re1 {[%clk 0:00:02.6]} 32... Bd3 {[%clk 0:00:17.4]} 33. Kg1 {[%clk 0:00:01.8]}
33... Rc8 {[%clk 0:00:13.9]} 34. b3 {[%clk 0:00:01.8]} 34... Ra8 {[%clk
0:00:14.2]} 35. Re7+ {[%clk 0:00:01.2]} 35... Kf6 {[%clk 0:00:14.2]} 0-1

[Event "Late-Titled-Tuesday-Blitz-October-03-2023"]
[Site "Chess.com"]
[Date "2023.10.03"]
[Round "8"]
[White "Cambek64"]
[Black "nitpicker"]
[Result "1-0"]
[WhiteElo "2452"]
[BlackElo "2248"]
[TimeControl "180+1"]
[EndTime "15:24:23 PDT"]
[Termination "Cambek64 won on time"]

1. d4 {[%clk 0:02:59.2]} 1... Nf6 {[%clk 0:02:56.4]} 2. c4 {[%clk 0:02:59.6]}
2... e6 {[%clk 0:02:56.3]} 3. Nf3 {[%clk 0:02:56.3]} 3... b6 {[%clk 0:02:53.6]}
4. g3 {[%clk 0:02:56.2]} 4... c6 {[%clk 0:02:45.8]} 5. Bg2 {[%clk 0:02:56.3]}
5... Bb4+ {[%clk 0:02:45.9]} 6. Nbd2 {[%clk 0:02:54.7]} 6... Be7 {[%clk
0:02:44.9]} 7. O-O {[%clk 0:02:54.9]} 7... d5 {[%clk 0:02:44.9]} 8. b3 {[%clk
0:02:53.7]} 8... O-O {[%clk 0:02:44.6]} 9. Bb2 {[%clk 0:02:54]} 9... Bb7 {[%clk
0:02:44.9]} 10. Ne5 {[%clk 0:02:47.4]} 10... Nfd7 {[%clk 0:02:08.7]} 11. Nd3
{[%clk 0:02:44.7]} 11... Na6 {[%clk 0:02:03.5]} 12. e4 {[%clk 0:02:43.1]} 12...
Nc7 {[%clk 0:02:02.5]} 13. cxd5 {[%clk 0:02:37.6]} 13... cxd5 {[%clk 0:02:00.9]}
14. e5 {[%clk 0:02:32.1]} 14... Ba6 {[%clk 0:02:00.4]} 15. Nf3 {[%clk
0:02:31.5]} 15... Rc8 {[%clk 0:01:57.1]} 16. h4 {[%clk 0:02:31.3]} 16... Nb5
{[%clk 0:01:50.1]} 17. Qd2 {[%clk 0:02:29.5]} 17... h6 {[%clk 0:01:45.7]} 18. a4
{[%clk 0:02:27.3]} 18... Nc7 {[%clk 0:01:45.5]} 19. Nh2 {[%clk 0:02:13.8]} 19...
Nb8 {[%clk 0:01:42.5]} 20. f4 {[%clk 0:02:12.7]} 20... f5 {[%clk 0:01:08.1]} 21.
exf6 {[%clk 0:02:10.3]} 21... Bxf6 {[%clk 0:01:08.7]} 22. Ng4 {[%clk 0:02:07.5]}
22... Nc6 {[%clk 0:01:08.8]} 23. Nxf6+ {[%clk 0:01:58.3]} 23... Qxf6 {[%clk
0:01:08.6]} 24. Rf2 {[%clk 0:01:46.3]} 24... Qg6 {[%clk 0:00:59]} 25. Nb4 {[%clk
0:01:33]} 25... Nxb4 {[%clk 0:00:55.1]} 26. Qxb4 {[%clk 0:01:32.9]} 26... Qxg3
{[%clk 0:00:54.8]} 27. Qd6 {[%clk 0:01:30.1]} 27... Qxh4 {[%clk 0:00:31.2]} 28.
Rc1 {[%clk 0:01:29.3]} 28... Qd8 {[%clk 0:00:28.4]} 29. Qe5 {[%clk 0:01:27.4]}
29... Qd7 {[%clk 0:00:23]} 30. Bh3 {[%clk 0:01:23.9]} 30... Rf6 {[%clk
0:00:16.7]} 31. Rfc2 {[%clk 0:01:22.8]} 31... Ne8 {[%clk 0:00:16.9]} 32. Ba3
{[%clk 0:01:17.5]} 32... Rxc2 {[%clk 0:00:14.7]} 33. Rxc2 {[%clk 0:01:18.1]}
33... Qf7 {[%clk 0:00:15.1]} 34. Bc1 {[%clk 0:01:09.5]} 34... Bd3 {[%clk
0:00:13.8]} 35. Rc8 {[%clk 0:01:04.2]} 35... Bf5 {[%clk 0:00:09.8]} 36. Bf1
{[%clk 0:00:59.9]} 36... Rg6+ {[%clk 0:00:08.9]} 37. Kf2 {[%clk 0:00:58.3]}
37... Qe7 {[%clk 0:00:08.8]} 38. Ke2 {[%clk 0:00:50.7]} 38... Kh7 {[%clk
0:00:05.8]} 39. Qb8 {[%clk 0:00:47.4]} 39... Qh4 {[%clk 0:00:02]} 40. Rxe8
{[%clk 0:00:44.5]} 40... Qh2+ {[%clk 0:00:02]} 41. Ke1 {[%clk 0:00:39.4]} 1-0

[Event "Late-Titled-Tuesday-Blitz-October-03-2023"]
[Site "Chess.com"]
[Date "2023.10.03"]
[Round "8"]
[White "Oleksandr_Bortnyk"]
[Black "BillieKimbah"]
[Result "1-0"]
[WhiteElo "3026"]
[BlackElo "2970"]
[TimeControl "180+1"]
[EndTime "15:24:24 PDT"]
[Termination "Oleksandr_Bortnyk won on time"]

1. e4 {[%clk 0:03:00.2]} 1... c6 {[%clk 0:02:59.3]} 2. c4 {[%clk 0:03:00.1]}
2... g6 {[%clk 0:02:55.7]} 3. Nc3 {[%clk 0:02:54.5]} 3... Bg7 {[%clk 0:02:55.7]}
4. d4 {[%clk 0:02:54.6]} 4... d6 {[%clk 0:02:55.9]} 5. Be3 {[%clk 0:02:50.7]}
5... Nf6 {[%clk 0:02:55.4]} 6. Be2 {[%clk 0:02:51]} 6... Na6 {[%clk 0:02:53.1]}
7. h4 {[%clk 0:02:50.7]} 7... h5 {[%clk 0:02:52.3]} 8. f3 {[%clk 0:02:48]} 8...
O-O {[%clk 0:02:47.6]} 9. Qd2 {[%clk 0:02:19.6]} 9... Nc7 {[%clk 0:02:45.6]} 10.
Bd1 {[%clk 0:02:19.9]} 10... b5 {[%clk 0:02:44.3]} 11. cxb5 {[%clk 0:02:18.8]}
11... cxb5 {[%clk 0:02:45.2]} 12. Bb3 {[%clk 0:02:14.6]} 12... b4 {[%clk
0:02:43.8]} 13. Nce2 {[%clk 0:02:12.7]} 13... a5 {[%clk 0:02:43.5]} 14. a4
{[%clk 0:01:46.2]} 14... bxa3 {[%clk 0:02:41.6]} 15. bxa3 {[%clk 0:01:47.1]}
15... a4 {[%clk 0:02:22.3]} 16. Ba2 {[%clk 0:01:46]} 16... Be6 {[%clk
0:02:03.1]} 17. Nh3 {[%clk 0:01:43.1]} 17... Bxa2 {[%clk 0:02:00.4]} 18. Rxa2
{[%clk 0:01:44]} 18... Rb8 {[%clk 0:01:58.1]} 19. O-O {[%clk 0:01:42.9]} 19...
Qd7 {[%clk 0:01:56.5]} 20. Bh6 {[%clk 0:01:34.2]} 20... Rb3 {[%clk 0:01:53]} 21.
Bxg7 {[%clk 0:01:33.5]} 21... Kxg7 {[%clk 0:01:53.9]} 22. Nc1 {[%clk 0:01:32.9]}
22... Rb1 {[%clk 0:01:49.2]} 23. d5 {[%clk 0:01:26.3]} 23... Rfb8 {[%clk
0:01:48.1]} 24. Nf4 {[%clk 0:01:21.9]} 24... Qb5 {[%clk 0:01:37.4]} 25. Rc2
{[%clk 0:01:06.1]} 25... Na6 {[%clk 0:01:36.5]} 26. Ncd3 {[%clk 0:01:01.2]}
26... Rb3 {[%clk 0:01:17]} 27. Re1 {[%clk 0:00:49.1]} 27... Qb6+ {[%clk
0:01:10.6]} 28. Kh2 {[%clk 0:00:44.6]} 28... Qd4 {[%clk 0:01:10.6]} 29. Rec1
{[%clk 0:00:32.6]} 29... Rxa3 {[%clk 0:00:50.4]} 30. Rc4 {[%clk 0:00:31]} 30...
Qa7 {[%clk 0:00:44.2]} 31. Rc6 {[%clk 0:00:22.7]} 31... Nc5 {[%clk 0:00:19.7]}
32. Nxc5 {[%clk 0:00:20.6]} 32... dxc5 {[%clk 0:00:20.6]} 33. e5 {[%clk
0:00:20.8]} 33... Ng8 {[%clk 0:00:14.5]} 34. Nxg6 {[%clk 0:00:16.6]} 34... fxg6
{[%clk 0:00:11.4]} 35. Qg5 {[%clk 0:00:17.1]} 35... Kf8 {[%clk 0:00:05.4]} 36.
Rxg6 {[%clk 0:00:15.8]} 1-0